fUST/lending_fUST_20250104
["ID","MTS","AMOUNT","RATE_DAILY","PERIOD"]
[347574005,1735921847582,-500.0,0.00019452,3]
[347574007,1735921847591,-510.60339641,0.00019452,3]
[347574009,1735921847600,-637.4,0.00019452,3]
[347574011,1735921847610,-1028.98,0.00019452,3]
[347574013,1735921847619,-500.0,0.00019452,3]
[347574015,1735921847629,-188.46206316,0.00019452,2]
[347574016,1735921847639,-500.0,0.00019452,3]
[347574018,1735921847649,-606.14550294,0.00019452,3]
[347574020,1735921847659,-500.0,0.00019452,3]
[347574022,1735921847669,-500.0,0.00019452,3]
[347574024,1735921847679,-504.54930697,0.00019452,3]
[347574026,1735921847688,-1629.57,0.00019452,3]
[347574028,1735921847698,-500.0,0.00019452,3]
[347574030,1735921847707,-500.0,0.00019452,3]
[347574032,1735921847716,-500.0,0.00019452,3]
[347574034,1735921847725,-500.0,0.00019452,3]
[347574036,1735921847734,-500.0,0.00019452,3]
[347574037,1735921847743,-500.0,0.00019452,3]
[347574039,1735921847753,-500.0,0.00019452,3]
[347574041,1735921847766,-500.0,0.00019452,3]
[347574043,1735921847775,-500.0,0.00019452,3]
[347574045,1735921847785,-4076.9,0.00019452,3]
[347574047,1735921847794,-500.0,0.00019452,3]
[347574049,1735921847808,-500.0,0.00019452,3]
[347574051,1735921847818,-500.0,0.00019452,3]
[347574053,1735921847828,-896.79,0.00019452,3]
[347574055,1735921847839,-500.0,0.00019452,3]
[347574057,1735921847851,-500.0,0.00019452,3]
[347574059,1735921847861,-391.29152214,0.00019452,3]
[347574061,1735921847870,-501.33202148,0.00019452,3]
[347574063,1735921847880,-500.0,0.00019452,3]
[347574065,1735921847889,-500.0,0.00019452,3]
[347574067,1735921847898,-500.0,0.00019452,3]
[347574068,1735921847907,-500.0,0.00019452,3]
[347574070,1735921847917,-500.0,0.00019452,3]
[347574072,1735921847926,-590.00063934,0.00019452,3]
[347574074,1735921847936,-500.0,0.00019452,3]
[347574076,1735921847945,-213.29116017,0.00019452,3]
[347574077,1735921847955,-6.81983131,0.00019452,3]
[347574081,1735921847987,-500.0,0.00019178,2]
[347574083,1735921847997,-493.18016869,0.00019452,3]
[347574085,1735921848006,-500.0,0.00019452,3]
[347574087,1735921848016,-500.0,0.00019452,3]
[347574089,1735921848025,-1158.14,0.00019452,3]
[347574091,1735921848035,-504.60239948,0.00019452,3]
[347574093,1735921848044,-500.0,0.00019452,3]
[347574095,1735921848056,-500.0,0.00019452,3]
[347574097,1735921848066,-500.0,0.00019452,3]
[347574099,1735921848075,-500.0,0.00019452,3]
[347574101,1735921848084,-500.0,0.00019452,3]
[347574103,1735921848094,-500.0,0.00019452,3]
[347574105,1735921848103,-856.28,0.00019452,3]
[347574107,1735921848113,-500.0,0.00019452,3]
[347574109,1735921848123,-500.0,0.00019452,3]
[347574111,1735921848133,-500.0,0.00019452,3]
[347574113,1735921848142,-155.96069788,0.00019452,3]
[347574115,1735921848151,-500.0,0.00019452,3]
[347574116,1735921848161,-500.0,0.00019452,3]
[347574118,1735921848172,-500.0,0.00019452,3]
[347574120,1735921848181,-500.0,0.00019452,3]
[347574122,1735921848191,-500.0,0.00019452,3]
[347574124,1735921848201,-500.0,0.00019452,3]
[347574126,1735921848210,-726.03,0.00019452,3]
[347574127,1735921848220,-500.0,0.00019452,3]
[347574129,1735921848230,-497.64673395,0.00019452,3]
[347574130,1735921848379,-446.20833079,0.00019178,2]
[347574155,1735921848888,-26510.59112353,0.00019178,2]
[347574157,1735921848901,-2039.815489,0.00019178,2]
[347574177,1735921849091,-7634.92505668,0.00019178,2]
[347574179,1735921849101,-500.0,0.00019178,2]
[347574181,1735921849111,-500.0,0.00019178,2]
[347574183,1735921849121,-463.37,0.00019178,2]
[347574185,1735921849131,-500.0,0.00019178,2]
[347574187,1735921849141,-500.0,0.00019178,2]
[347574189,1735921849150,-69.53992902,0.00019178,2]
[347574191,1735921849162,-255.1932596,0.00019178,2]
[347574193,1735921849174,-175.26681138,0.00019178,2]
[347574195,1735921849184,-2.35326605,0.00019452,3]
[347574197,1735921849193,-855.48,0.00019452,3]
[347574199,1735921849203,-582.04,0.00019452,3]
[347574201,1735921849213,-500.0,0.00019452,3]
[347574203,1735921849223,-502.81573133,0.00019452,3]
[347574205,1735921849232,-484.01,0.00019452,3]
[347574207,1735921849242,-505.37058005,0.00019452,3]
[347574209,1735921849252,-500.0,0.00019452,3]
[347574211,1735921849262,-500.0,0.00019452,3]
[347574213,1735921849272,-500.0,0.00019452,3]
[347574215,1735921849283,-503.33978516,0.00019452,3]
[347574217,1735921849293,-250.39635654,0.00019452,3]
[347574219,1735921849306,-1747.68,0.00019452,3]
[347574221,1735921849316,-500.0,0.00019452,3]
[347574223,1735921849327,-500.0,0.00019452,3]
[347574225,1735921849337,-693.62,0.00019452,3]
[347574227,1735921849347,-500.0,0.00019452,3]
[347574229,1735921849357,-506.56616542,0.00019452,3]
[347574231,1735921849367,-1103.74,0.00019452,3]
[347574232,1735921849377,-500.0,0.00019452,3]
[347574234,1735921849387,-566.05,0.00019452,3]
[347574236,1735921849397,-500.0,0.00019452,3]
[347574238,1735921849408,-500.0,0.00019452,3]
[347574240,1735921849418,-500.0,0.00019452,3]
[347574242,1735921849429,-500.0,0.00019452,3]
[347574244,1735921849438,-500.0,0.00019452,3]
[347574246,1735921849448,-500.0,0.00019452,3]
[347574248,1735921849458,-500.0,0.00019452,3]
[347574250,1735921849468,-598.43560107,0.00019452,3]
[347574251,1735921849477,-500.0,0.00019452,3]
[347574252,1735921849487,-767.5,0.00019452,3]
[347574253,1735921849502,-523.95445657,0.00019452,3]
[347574254,1735921849511,-500.0,0.00019452,3]
[347574255,1735921849521,-503.60952583,0.00019452,3]
[347574256,1735921849695,-2089.74,0.00019452,3]
[347574257,1735921849705,-500.0,0.00019452,3]
[347574258,1735921849715,-500.0,0.00019452,3]
[347574259,1735921849725,-500.0,0.00019452,3]
[347574260,1735921849735,-875.93,0.00019452,3]
[347574261,1735921849746,-500.0,0.00019452,3]
[347574262,1735921849759,-501.14358346,0.00019452,3]
[347574264,1735921849769,-503.29262681,0.00019452,3]
[347574266,1735921849779,-501.25889769,0.00019452,3]
[347574268,1735921849789,-1285.38,0.00019452,3]
[347574270,1735921849803,-500.0,0.00019452,3]
[347574271,1735921849812,-500.0,0.00019452,3]
[347574273,1735921849821,-500.0,0.00019452,3]
[347574275,1735921849832,-888.5,0.00019452,3]
[347574278,1735921849842,-500.0,0.00019452,3]
[347574280,1735921849851,-500.0,0.00019452,3]
[347574282,1735921849861,-500.0,0.00019452,3]
[347574284,1735921849870,-500.0,0.00019452,3]
[347574286,1735921849880,-520.31762951,0.00019452,3]
[347574287,1735921849889,-500.0,0.00019452,3]
[347574289,1735921849899,-500.0,0.00019452,3]
[347574291,1735921849908,-500.0,0.00019452,3]
[347574292,1735921849917,-500.0,0.00019452,3]
[347574294,1735921849926,-500.0,0.00019452,3]
[347574296,1735921849935,-500.0,0.00019452,3]
[347574298,1735921849945,-2302.0,0.00019452,3]
[347574300,1735921849954,-500.0,0.00019452,3]
[347574301,1735921849963,-500.0,0.00019452,3]
[347574303,1735921849972,-500.0,0.00019452,3]
[347574305,1735921849982,-501.49118778,0.00019452,3]
[347574307,1735921849991,-500.0,0.00019452,3]
[347574309,1735921850001,-500.0,0.00019452,3]
[347574311,1735921850010,-532.44604152,0.00019452,3]
[347574313,1735921850020,-687.65,0.00019452,3]
[347574315,1735921850029,-349.92252614,0.00019452,3]
[347574317,1735921850043,-150.07747386,0.00019452,3]
[347574320,1735921850056,-500.0,0.00019452,3]
[347574321,1735921850065,-379.92252614,0.00019452,3]
[347574324,1735921850081,-500.0,0.00019178,2]
[347574326,1735921850092,-120.07747386,0.00019452,3]
[347574328,1735921850101,-26.53329585,0.00019452,3]
[347574348,1735921850285,-500.0,0.00019178,2]
[347574350,1735921850294,-500.0,0.00019178,2]
[347574352,1735921850305,-473.46670415,0.00019452,3]
[347574354,1735921850314,-500.0,0.00019452,3]
[347574356,1735921850323,-504.96294223,0.00019452,3]
[347574358,1735921850333,-500.0,0.00019452,3]
[347574360,1735921850342,-500.0,0.00019452,3]
[347574361,1735921850352,-597.27,0.00019452,3]
[347574362,1735921850361,-500.0,0.00019452,3]
[347574364,1735921850370,-500.0,0.00019452,3]
[347574366,1735921850381,-500.0,0.00019452,3]
[347574369,1735921850390,-500.0,0.00019452,3]
[347574371,1735921850402,-500.0,0.00019452,3]
[347574373,1735921850413,-500.0,0.00019452,3]
[347574375,1735921850422,-500.0,0.00019452,3]
[347574377,1735921850433,-500.0,0.00019452,3]
[347574379,1735921850442,-500.0,0.00019452,3]
[347574381,1735921850451,-4152.08108151,0.00019452,3]
[347574383,1735921850464,-6785.48157226,0.00019452,3]
[347574386,1735921850476,-472.59,0.00019452,3]
[347574388,1735921850487,-9458.69655,0.00019452,3]
[347574400,1735921850593,-23.83409155,0.00019452,3]
[347574939,1735921856586,166.463239,0.00018891,2]
[347575158,1735921870014,197.10790798,0.000189,2]
[347575165,1735922100854,206.599139,0.00013973,2]
[347575199,1735922847109,-2786.2636635,0.00018063,2]
[347575200,1735922847131,-245.27395059,0.000189,2]
[347575201,1735922847153,-150.0,0.000189,2]
[347575202,1735922847174,-2578.0,0.00018999,2]
[347575203,1735922847197,-155.77189135,0.00019,10]
[347575204,1735922847218,-2131.8956625,0.00019,4]
[347575205,1735922946092,-214.61470674,0.000189,2]
[347575206,1735922995455,196.269182,0.00013973,2]
[347575209,1735923007670,164.592463,0.00018809,2]
[347575210,1735923023773,80372.0,0.000188,2]
[347575263,1735923034749,-300.0,0.00018999,2]
[347575265,1735923034759,-5697.25538608,0.00019,4]
[347575268,1735923034771,-4896.8,0.00019,4]
[347575270,1735923034782,-7174.9,0.00019,4]
[347575273,1735923034804,-45011.74495142,0.00019,4]
[347575275,1735923034814,-365.99292917,0.00019,2]
[347575277,1735923034824,-32565.83555518,0.00019078,2]
[347575279,1735923034834,-501.41942562,0.00019173,2]
[347575281,1735923034844,-500.0,0.00019173,2]
[347575284,1735923034854,-578.5146873,0.00019173,2]
[347575286,1735923034863,-203.52803474,0.00019173,2]
[347575288,1735923034873,-503.31740863,0.00019173,2]
[347575290,1735923034882,-219.75003647,0.00019173,2]
[347575291,1735923034892,-500.0,0.00019173,2]
[347575294,1735923034902,-500.58599813,0.00019173,2]
[347575296,1735923034911,-500.94274312,0.00019173,2]
[347575298,1735923034921,-500.0,0.00019173,2]
[347575300,1735923034930,-500.0,0.00019173,2]
[347575302,1735923034940,-500.92378934,0.00019173,2]
[347575306,1735923034950,-311.93715762,0.00019173,2]
[347575309,1735923034959,-500.0,0.00019173,2]
[347575312,1735923034969,-259.95870971,0.00019173,2]
[347575315,1735923034979,-152.23315214,0.00019173,2]
[347575318,1735923034989,-537.08156589,0.00019173,2]
[347575321,1735923034999,-800.0,0.00019175,3]
[347575323,1735923035009,-801.03558093,0.00019175,10]
[347575325,1735923035018,-192.034,0.00019177,2]
[347575327,1735923035027,-589.7,0.00019177,5]
[347575329,1735923035037,-500.0,0.00019177,2]
[347575331,1735923035046,-273.30445263,0.00019177,2]
[347575333,1735923035057,-512.97638242,0.00019177,2]
[347575335,1735923035067,-500.35955045,0.00019177,2]
[347575337,1735923035077,-500.0,0.00019177,2]
[347575339,1735923035087,-500.0,0.00019177,2]
[347575341,1735923035097,-500.0,0.00019177,2]
[347575343,1735923035106,-184.45563189,0.00019177,2]
[347575345,1735923035116,-621.16456935,0.00019177,2]
[347575347,1735923035125,-623.34273011,0.00019177,2]
[347575349,1735923035135,-500.0,0.00019177,2]
[347575351,1735923035145,-500.0,0.00019177,2]
[347575353,1735923035155,-500.0,0.00019177,2]
[347575355,1735923035167,-500.0,0.00019177,2]
[347575357,1735923035177,-196.25312902,0.00019177,2]
[347575359,1735923035187,-500.0,0.00019177,2]
[347575361,1735923035199,-500.0,0.00019177,2]
[347575363,1735923035209,-500.0,0.00019177,2]
[347575365,1735923035219,-500.0,0.00019177,2]
[347575367,1735923035228,-527.20693981,0.00019177,2]
[347575369,1735923035239,-500.0,0.00019177,2]
[347575371,1735923035248,-154.78894101,0.00019177,2]
[347575373,1735923035258,-500.0,0.00019177,2]
[347575375,1735923035268,-500.0,0.00019177,2]
[347575378,1735923035278,-500.0,0.00019177,2]
[347575380,1735923035288,-500.0,0.00019177,2]
[347575382,1735923035297,-600.0,0.00019177,2]
[347575384,1735923035306,-500.0,0.00019177,2]
[347575386,1735923035317,-500.0,0.00019177,2]
[347575388,1735923035326,-500.0,0.00019177,2]
[347575390,1735923035336,-500.0,0.00019177,2]
[347575392,1735923035345,-500.0,0.00019177,2]
[347575394,1735923035355,-547.97276297,0.00019177,2]
[347575396,1735923035364,-500.0,0.00019177,2]
[347575398,1735923035373,-500.0,0.00019177,2]
[347575400,1735923035382,-500.0,0.00019177,2]
[347575402,1735923035392,-500.0,0.00019177,2]
[347575404,1735923035401,-500.0,0.00019177,2]
[347575406,1735923035410,-650.0,0.00019177,2]
[347575408,1735923035419,-500.0,0.00019177,2]
[347575410,1735923035429,-500.0,0.00019177,2]
[347575412,1735923035438,-500.0,0.00019177,2]
[347575414,1735923035447,-500.0,0.00019177,2]
[347575416,1735923035458,-500.0,0.00019177,2]
[347575418,1735923035467,-500.0,0.00019177,2]
[347575420,1735923035476,-500.0,0.00019177,2]
[347575422,1735923035486,-500.0,0.00019177,2]
[347575424,1735923035495,-500.0,0.00019177,2]
[347575426,1735923035505,-500.0,0.00019177,2]
[347575428,1735923035514,-500.0,0.00019177,2]
[347575430,1735923035523,-500.0,0.00019177,2]
[347575432,1735923035533,-500.0,0.00019177,2]
[347575434,1735923035542,-500.0,0.00019177,2]
[347575436,1735923035551,-500.0,0.00019177,2]
[347575438,1735923035560,-350.0,0.00019177,2]
[347575440,1735923035571,-500.0,0.00019177,2]
[347575442,1735923035580,-499.99999999,0.00019177,2]
[347575444,1735923035589,-500.0,0.00019177,2]
[347575446,1735923035598,-500.0,0.00019177,2]
[347575448,1735923035608,-500.0,0.00019177,2]
[347575450,1735923035617,-500.0,0.00019177,2]
[347575452,1735923035627,-500.0,0.00019177,2]
[347575454,1735923035636,-500.0,0.00019177,2]
[347575456,1735923035645,-649.90720707,0.00019177,2]
[347575458,1735923035655,-500.0,0.00019177,2]
[347575460,1735923035665,-500.0,0.00019177,2]
[347575462,1735923035674,-500.0,0.00019177,2]
[347575465,1735923035684,-498.7377758,0.00019178,2]
[347575467,1735923035694,-500.84389074,0.00019178,2]
[347575469,1735923035703,-502.70866287,0.00019178,2]
[347575471,1735923035712,-500.0,0.00019178,2]
[347575473,1735923035723,-500.0,0.00019178,2]
[347575475,1735923035732,-500.0,0.00019178,2]
[347575477,1735923035742,-503.7417894,0.00019178,2]
[347575479,1735923035751,-500.0,0.00019178,2]
[347575481,1735923035762,-500.0,0.00019178,2]
[347575483,1735923035771,-500.0,0.00019178,2]
[347575485,1735923035780,-500.0,0.00019178,2]
[347575487,1735923035789,-500.0,0.00019178,2]
[347575488,1735923035798,-500.0,0.00019178,2]
[347575491,1735923035807,-500.0,0.00019178,2]
[347575492,1735923035817,-500.0,0.00019178,2]
[347575495,1735923035826,-500.0,0.00019178,2]
[347575497,1735923035836,-500.0,0.00019178,2]
[347575499,1735923035845,-500.0,0.00019178,2]
[347575501,1735923035855,-500.0,0.00019178,2]
[347575503,1735923035865,-500.0,0.00019178,2]
[347575505,1735923035874,-266.70799484,0.00019178,2]
[347575507,1735923035884,-502.97312295,0.00019178,2]
[347575509,1735923035893,-500.0,0.00019178,2]
[347575511,1735923035903,-500.0,0.00019178,2]
[347575513,1735923035912,-500.0,0.00019178,2]
[347575515,1735923035922,-500.0,0.00019178,2]
[347575517,1735923035932,-446.71135223,0.00019178,2]
[347575519,1735923035942,-500.0,0.00019178,2]
[347575521,1735923035952,-500.0,0.00019178,2]
[347575523,1735923035961,-500.0,0.00019178,2]
[347575525,1735923035970,-500.0,0.00019178,2]
[347575527,1735923035980,-500.0,0.00019178,2]
[347575529,1735923035989,-500.0,0.00019178,2]
[347575531,1735923035999,-500.0,0.00019178,2]
[347575533,1735923036008,-500.0,0.00019178,2]
[347575535,1735923036017,-500.0,0.00019178,2]
[347575537,1735923036027,-500.0,0.00019178,2]
[347575539,1735923036036,-500.0,0.00019178,2]
[347575541,1735923036045,-500.0,0.00019178,2]
[347575543,1735923036054,-500.0,0.00019178,2]
[347575545,1735923036063,-500.0,0.00019178,2]
[347575548,1735923036083,-500.0,0.00019178,2]
[347575551,1735923036094,-505.03509409,0.00019178,2]
[347575553,1735923036103,-500.0,0.00019178,2]
[347575555,1735923036113,-500.0,0.00019178,2]
[347575557,1735923036122,-500.0,0.00019178,2]
[347575559,1735923036132,-500.0,0.00019178,2]
[347575561,1735923036141,-321.09446341,0.00019178,2]
[347575563,1735923036151,-500.0,0.00019178,2]
[347575565,1735923036164,-500.0,0.00019178,2]
[347575567,1735923036174,-500.0,0.00019178,2]
[347575569,1735923036187,-500.0,0.00019178,2]
[347575571,1735923036198,-500.0,0.00019178,2]
[347575573,1735923036208,-500.0,0.00019178,2]
[347575575,1735923036218,-500.0,0.00019178,2]
[347575577,1735923036228,-500.0,0.00019178,2]
[347575579,1735923036239,-500.0,0.00019178,2]
[347575581,1735923036250,-500.0,0.00019178,2]
[347575583,1735923036260,-500.0,0.00019178,2]
[347575585,1735923036269,-502.18038305,0.00019178,2]
[347575587,1735923036278,-500.0,0.00019178,2]
[347575589,1735923036288,-354.52678774,0.00019178,2]
[347575591,1735923036298,-500.0,0.00019178,2]
[347575593,1735923036307,-468.10559031,0.00019178,2]
[347575595,1735923036317,-500.0,0.00019178,2]
[347575597,1735923036326,-508.1,0.00019178,2]
[347575599,1735923036336,-500.0,0.00019178,2]
[347575601,1735923036345,-500.0,0.00019178,2]
[347575603,1735923036355,-507.94198458,0.00019178,2]
[347575605,1735923036364,-502.21404212,0.00019178,2]
[347575607,1735923036374,-510.98,0.00019178,2]
[347575609,1735923036384,-530.14,0.00019178,2]
[347575611,1735923036393,-502.06395716,0.00019178,2]
[347575613,1735923036403,-500.0,0.00019178,2]
[347575615,1735923036412,-500.0,0.00019178,2]
[347575618,1735923036422,-500.0,0.00019178,2]
[347575620,1735923036431,-504.97260899,0.00019178,2]
[347575622,1735923036440,-500.0,0.00019178,2]
[347575624,1735923036449,-500.0,0.00019178,2]
[347575626,1735923036459,-500.0,0.00019178,2]
[347575628,1735923036469,-500.0,0.00019178,2]
[347575630,1735923036478,-500.0,0.00019178,2]
[347575632,1735923036487,-500.0,0.00019178,2]
[347575634,1735923036497,-500.0,0.00019178,2]
[347575636,1735923036507,-500.0,0.00019178,2]
[347575638,1735923036516,-500.0,0.00019178,2]
[347575640,1735923036526,-500.0,0.00019178,2]
[347575642,1735923036535,-500.0,0.00019178,2]
[347575644,1735923036545,-500.0,0.00019178,2]
[347575646,1735923036554,-500.0,0.00019178,2]
[347575648,1735923036564,-500.0,0.00019178,2]
[347575650,1735923036574,-500.0,0.00019178,2]
[347575652,1735923036584,-500.71127326,0.00019178,2]
[347575654,1735923036594,-500.0,0.00019178,2]
[347575656,1735923036604,-500.0,0.00019178,2]
[347575658,1735923036614,-502.07183632,0.00019178,2]
[347575660,1735923036624,-500.0,0.00019178,2]
[347575662,1735923036634,-501.80206379,0.00019178,2]
[347575665,1735923036643,-366.25962505,0.00019178,2]
[347575667,1735923036653,-501.78865278,0.00019178,2]
[347575669,1735923036662,-500.0,0.00019178,2]
[347575671,1735923036671,-500.0,0.00019178,2]
[347575673,1735923036681,-500.0,0.00019178,2]
[347575675,1735923036691,-539.93542246,0.00019178,2]
[347575677,1735923036701,-500.0,0.00019178,2]
[347575679,1735923036711,-500.0,0.00019178,2]
[347575681,1735923036720,-7779.87,0.00019178,2]
[347575693,1735923036910,-500.0,0.00019178,2]
[347575694,1735923036920,-500.0,0.00019178,2]
[347575695,1735923036929,-500.0,0.00019178,2]
[347575696,1735923036939,-500.0,0.00019178,2]
[347575697,1735923036948,-500.0,0.00019178,2]
[347575698,1735923036959,-500.0,0.00019178,2]
[347575699,1735923036968,-500.0,0.00019178,2]
[347575700,1735923036977,-406.59965588,0.00019178,2]
[347575701,1735923036986,-500.0,0.00019178,2]
[347575702,1735923036995,-500.0,0.00019178,2]
[347575703,1735923037005,-500.0,0.00019178,2]
[347575704,1735923037014,-567.74,0.00019178,2]
[347575705,1735923037023,-500.0,0.00019178,2]
[347575706,1735923037032,-500.0,0.00019178,2]
[347575708,1735923037042,-484.50978505,0.00019178,2]
[347575710,1735923037051,-188.0,0.00019178,2]
[347575712,1735923037061,-500.0,0.00019178,2]
[347575714,1735923037071,-500.0,0.00019178,2]
[347575716,1735923037081,-500.0,0.00019178,2]
[347575718,1735923037090,-218.22929547,0.00019178,2]
[347575720,1735923037099,-500.0,0.00019178,2]
[347575722,1735923037108,-500.0,0.00019178,2]
[347575724,1735923037118,-500.0,0.00019178,2]
[347575726,1735923037127,-500.0,0.00019178,2]
[347575728,1735923037136,-500.0,0.00019178,2]
[347575730,1735923037145,-500.0,0.00019178,2]
[347575732,1735923037159,-500.0,0.00019178,2]
[347575734,1735923037168,-500.0,0.00019178,2]
[347575736,1735923037178,-500.0,0.00019178,2]
[347575738,1735923037187,-1032.67,0.00019178,2]
[347575740,1735923037197,-500.0,0.00019178,2]
[347575742,1735923037207,-500.0,0.00019178,2]
[347575744,1735923037218,-802.99,0.00019178,2]
[347575746,1735923037227,-500.0,0.00019178,2]
[347575748,1735923037238,-500.0,0.00019178,2]
[347575750,1735923037248,-500.0,0.00019178,2]
[347575752,1735923037257,-500.0,0.00019178,2]
[347575754,1735923037267,-500.0,0.00019178,2]
[347575756,1735923037276,-500.0,0.00019178,2]
[347575758,1735923037285,-500.0,0.00019178,2]
[347575760,1735923037295,-500.0,0.00019178,2]
[347575762,1735923037304,-1306.93,0.00019178,2]
[347575763,1735923037314,-500.0,0.00019178,2]
[347575766,1735923037325,-500.0,0.00019178,2]
[347575768,1735923037335,-803.66,0.00019178,2]
[347575769,1735923037344,-500.0,0.00019178,2]
[347575771,1735923037354,-500.0,0.00019178,2]
[347575773,1735923037363,-500.0,0.00019178,2]
[347575775,1735923037374,-500.0,0.00019178,2]
[347575778,1735923037385,-500.0,0.00019178,2]
[347575780,1735923037395,-500.0,0.00019178,2]
[347575782,1735923037404,-500.0,0.00019178,2]
[347575784,1735923037414,-500.0,0.00019178,2]
[347575785,1735923037423,-609.17,0.00019178,2]
[347575788,1735923037433,-500.0,0.00019178,2]
[347575789,1735923037442,-500.0,0.00019178,2]
[347575792,1735923037452,-500.0,0.00019178,2]
[347575794,1735923037461,-500.0,0.00019178,2]
[347575796,1735923037470,-500.0,0.00019178,2]
[347575798,1735923037480,-500.0,0.00019178,2]
[347575800,1735923037490,-500.0,0.00019178,2]
[347575802,1735923037500,-500.0,0.00019178,2]
[347575804,1735923037509,-500.0,0.00019178,2]
[347575806,1735923037519,-500.0,0.00019178,2]
[347575808,1735923037528,-500.0,0.00019178,2]
[347575810,1735923037537,-500.0,0.00019178,2]
[347575812,1735923037547,-701.91,0.00019178,2]
[347575814,1735923037556,-500.0,0.00019178,2]
[347575816,1735923037565,-500.0,0.00019178,2]
[347575818,1735923037576,-500.0,0.00019178,2]
[347575820,1735923037585,-500.0,0.00019178,2]
[347575822,1735923037594,-501.82913076,0.00019178,2]
[347575824,1735923037608,-500.0,0.00019178,2]
[347575826,1735923037618,-500.0,0.00019178,2]
[347575828,1735923037627,-500.0,0.00019178,2]
[347575830,1735923037636,-500.0,0.00019178,2]
[347575832,1735923037646,-500.0,0.00019178,2]
[347575834,1735923037656,-500.0,0.00019178,2]
[347575836,1735923037665,-503.21414548,0.00019178,2]
[347575838,1735923037675,-500.0,0.00019178,2]
[347575840,1735923037684,-500.0,0.00019178,2]
[347575842,1735923037693,-500.0,0.00019178,2]
[347575844,1735923037702,-503.02719017,0.00019178,2]
[347575846,1735923037712,-500.0,0.00019178,2]
[347575848,1735923037721,-533.35977347,0.00019178,2]
[347575850,1735923037730,-500.0,0.00019178,2]
[347575852,1735923037739,-500.0,0.00019178,2]
[347575854,1735923037748,-501.52530935,0.00019178,2]
[347575856,1735923037758,-500.0,0.00019178,2]
[347575858,1735923037767,-500.0,0.00019178,2]
[347575860,1735923037776,-500.0,0.00019178,2]
[347575862,1735923037785,-500.0,0.00019178,2]
[347575865,1735923037794,-500.0,0.00019178,2]
[347575867,1735923037804,-500.0,0.00019178,2]
[347575871,1735923037813,-500.0,0.00019178,2]
[347575874,1735923037824,-500.0,0.00019178,2]
[347575877,1735923037834,-500.0,0.00019178,2]
[347575880,1735923037843,-500.0,0.00019178,2]
[347575883,1735923037853,-603.56,0.00019178,2]
[347575886,1735923037863,-500.0,0.00019178,2]
[347575888,1735923037872,-500.0,0.00019178,2]
[347575890,1735923037881,-500.0,0.00019178,2]
[347575892,1735923037891,-500.0,0.00019178,2]
[347575894,1735923037900,-500.0,0.00019178,2]
[347575896,1735923037909,-500.0,0.00019178,2]
[347575898,1735923037918,-500.0,0.00019178,2]
[347575900,1735923037927,-500.0,0.00019178,2]
[347575902,1735923037936,-500.0,0.00019178,2]
[347575904,1735923037945,-586.72,0.00019178,2]
[347575905,1735923037954,-836.88,0.00019178,2]
[347575908,1735923037964,-500.0,0.00019178,2]